[Event "Titled Tuesday Blitz August 08 Late 2023"]
[White "Grigoriants, Sergey"]
[Black "Reprintsev, Alexander"]
[WhiteFideId "4130804"]
[BlackFideId "14100541"]
[WhiteElo "2900"]
[BlackElo "2489"]
[Result "1-0"]
[Round "1"]
[TimeControl "180+1"]
[Date "2023.08.08"]
[WhiteClock "0:01:00"]
[BlackClock "0:00:00"]
[Board "26"]

1. d4 {[%clk 0:02:59]}  d5 {[%clk 0:02:47]} 2. c4 {[%clk 0:02:58]}  e5 {[%clk 0:02:46]} 3. dxe5 {[%clk 0:02:56]}  d4 {[%clk 0:02:46]} 4. Nf3 {[%clk 0:02:57]}  Nc6 {[%clk 0:02:45]} 5. a3 {[%clk 0:02:57]}  g6 {[%clk 0:02:44]} 6. g3 {[%clk 0:02:22]}  Bg7 {[%clk 0:02:39]} 7. Bf4 {[%clk 0:02:22]}  h6 {[%clk 0:02:38]} 8. h4 {[%clk 0:02:21]}  f6 {[%clk 0:02:37]} 9. exf6 {[%clk 0:02:19]}  Nxf6 {[%clk 0:02:36]} 10. Bg2 {[%clk 0:02:19]}  Ne4 {[%clk 0:01:47]} 11. Nbd2 {[%clk 0:02:12]}  Bf5 {[%clk 0:01:43]} 12. Nxe4 {[%clk 0:02:09]}  Bxe4 {[%clk 0:01:43]} 13. O-O {[%clk 0:02:10]}  Qe7 {[%clk 0:01:33]} 14. b4 {[%clk 0:01:55]}  O-O {[%clk 0:01:24]} 15. Qb3 {[%clk 0:01:37]}  Rad8 {[%clk 0:01:07]} 16. b5 {[%clk 0:01:28]}  Na5 {[%clk 0:00:51]} 17. Qb4 {[%clk 0:01:27]}  Qxb4 {[%clk 0:00:49]} 18. axb4 {[%clk 0:01:28]}  Nxc4 {[%clk 0:00:49]} 19. Rxa7 {[%clk 0:01:18]}  c6 {[%clk 0:00:26]} 20. Ne1 {[%clk 0:01:14]}  Bxg2 {[%clk 0:00:21]} 21. Kxg2 {[%clk 0:01:14]}  cxb5 {[%clk 0:00:19]} 22. Rxb7 {[%clk 0:01:15]}  Be5 {[%clk 0:00:07]} 23. Nd3 {[%clk 0:01:13]}  Bxf4 {[%clk 0:00:06]} 24. Nxf4 {[%clk 0:01:14]}  Rb8 {[%clk 0:00:06]} 25. Rxb8 {[%clk 0:01:11]}  Rxb8 {[%clk 0:00:05]} 26. Rd1 {[%clk 0:01:12]}  Rd8 {[%clk 0:00:00]} 27. Ne6 {[%clk 0:01:00]} 1-0


[Site "https://www.chess.com"]

[Event "Titled Tuesday Blitz August 08 Late 2023"]
[White "Khanin, Semen"]
[Black "Tworuszka, Michal"]
[WhiteFideId "4111990"]
[BlackFideId "1117858"]
[WhiteElo "2891"]
[BlackElo "2488"]
[Result "1-0"]
[Round "1"]
[TimeControl "180+1"]
[Date "2023.08.08"]
[WhiteClock "0:00:12"]
[BlackClock "0:00:13"]
[Board "28"]

1. e4 {[%clk 0:03:00]}  c5 {[%clk 0:02:59]} 2. Nf3 {[%clk 0:03:00]}  e6 {[%clk 0:02:59]} 3. c3 {[%clk 0:03:00]}  Nf6 {[%clk 0:02:58]} 4. e5 {[%clk 0:03:00]}  Nd5 {[%clk 0:02:58]} 5. d4 {[%clk 0:03:00]}  cxd4 {[%clk 0:02:56]} 6. cxd4 {[%clk 0:03:01]}  b6 {[%clk 0:02:57]} 7. Bc4 {[%clk 0:03:01]}  Ba6 {[%clk 0:02:53]} 8. Bxd5 {[%clk 0:02:51]}  exd5 {[%clk 0:02:53]} 9. Nc3 {[%clk 0:02:52]}  Bb4 {[%clk 0:02:49]} 10. Bg5 {[%clk 0:02:44]}  Qc8 {[%clk 0:02:41]} 11. Rc1 {[%clk 0:02:43]}  Nc6 {[%clk 0:02:39]} 12. a3 {[%clk 0:02:36]}  Bxc3+ {[%clk 0:02:39]} 13. Rxc3 {[%clk 0:02:37]}  O-O {[%clk 0:02:35]} 14. Qd2 {[%clk 0:02:37]}  Re8 {[%clk 0:02:29]} 15. Kd1 {[%clk 0:02:29]}  Re6 {[%clk 0:02:08]} 16. h4 {[%clk 0:02:21]}  Bb5 {[%clk 0:01:57]} 17. h5 {[%clk 0:02:19]}  h6 {[%clk 0:01:55]} 18. Bf4 {[%clk 0:02:19]}  Qa6 {[%clk 0:01:55]} 19. Kc1 {[%clk 0:02:17]}  Bc4 {[%clk 0:01:33]} 20. Nh4 {[%clk 0:01:56]}  b5 {[%clk 0:01:31]} 21. Nf5 {[%clk 0:01:54]}  b4 {[%clk 0:01:27]} 22. Rg3 {[%clk 0:01:54]}  bxa3 {[%clk 0:01:19]} 23. Rxg7+ {[%clk 0:01:53]}  Kf8 {[%clk 0:01:19]} 24. Rg3 {[%clk 0:01:15]}  axb2+ {[%clk 0:01:14]} 25. Qxb2 {[%clk 0:01:15]}  Rb8 {[%clk 0:01:05]} 26. Qa3+ {[%clk 0:01:13]}  Qxa3+ {[%clk 0:01:02]} 27. Rxa3 {[%clk 0:01:14]}  Nb4 {[%clk 0:00:57]} 28. Bxh6+ {[%clk 0:01:11]}  Kg8 {[%clk 0:00:57]} 29. Rhh3 {[%clk 0:01:08]}  Kh7 {[%clk 0:00:39]} 30. Bd2 {[%clk 0:01:07]}  Na2+ {[%clk 0:00:27]} 31. Kd1 {[%clk 0:00:43]}  Rb1+ {[%clk 0:00:19]} 32. Kc2 {[%clk 0:00:42]}  Reb6 {[%clk 0:00:19]} 33. Rxa2 {[%clk 0:00:38]}  Bxa2 {[%clk 0:00:19]} 34. Bc3 {[%clk 0:00:39]}  Bc4 {[%clk 0:00:18]} 35. Rg3 {[%clk 0:00:38]}  Rf1 {[%clk 0:00:16]} 36. Rg7+ {[%clk 0:00:29]}  Kh8 {[%clk 0:00:16]} 37. Rxf7 {[%clk 0:00:30]}  Rxf2+ {[%clk 0:00:16]} 38. Kc1 {[%clk 0:00:30]}  Rb3 {[%clk 0:00:15]} 39. Be1 {[%clk 0:00:25]}  Re2 {[%clk 0:00:13]} 40. Bh4 {[%clk 0:00:12]}  Bd3 {[%clk 0:00:13]} 41. Bf6+ {[%clk 0:00:12]}  Kg8 {[%clk 0:00:13]} 42. Nh6# {[%clk 0:00:12]} 1-0


[Site "https://www.chess.com"]

[Event "Titled Tuesday Blitz August 08 Late 2023"]
[White "Aravindh, Chithambaram VR."]
[Black "Biregina"]
[WhiteFideId "5072786"]
[WhiteElo "2880"]
[BlackElo "2484"]
[Result "1-0"]
[Round "1"]
[TimeControl "180+1"]
[Date "2023.08.08"]
[WhiteClock "0:02:16"]
[BlackClock "0:01:27"]
[Board "32"]

1. Nf3 {[%clk 0:02:58]}  d6 {[%clk 0:02:55]} 2. d4 {[%clk 0:02:58]}  Nd7 {[%clk 0:02:49]} 3. e4 {[%clk 0:02:57]}  Ngf6 {[%clk 0:02:48]} 4. e5 {[%clk 0:02:52]}  dxe5 {[%clk 0:02:34]} 5. dxe5 {[%clk 0:02:53]}  Ng4 {[%clk 0:02:34]} 6. e6 {[%clk 0:02:53]}  Nde5 {[%clk 0:02:33]} 7. exf7+ {[%clk 0:02:32]}  Nxf7 {[%clk 0:02:28]} 8. Qxd8+ {[%clk 0:02:23]}  Nxd8 {[%clk 0:02:13]} 9. Nc3 {[%clk 0:02:23]}  Nf6 {[%clk 0:02:11]} 10. Bf4 {[%clk 0:02:22]}  Ne6 {[%clk 0:02:10]} 11. Bg3 {[%clk 0:02:22]}  Bd7 {[%clk 0:02:09]} 12. O-O-O {[%clk 0:02:22]}  O-O-O {[%clk 0:02:08]} 13. Bc4 {[%clk 0:02:20]}  Nc5 {[%clk 0:01:59]} 14. Ne5 {[%clk 0:02:19]}  Be6 {[%clk 0:01:51]} 15. Rxd8+ {[%clk 0:02:15]}  Kxd8 {[%clk 0:01:52]} 16. Bxe6 {[%clk 0:02:15]}  Nxe6 {[%clk 0:01:27]} 17. Nf7+ {[%clk 0:02:16]} 1-0


[Site "https://www.chess.com"]

[Event "Titled Tuesday Blitz August 08 Late 2023"]
[White "Mortazavi, Ali"]
[Black "Isanzhulov, Arystan"]
[WhiteFideId "401323"]
[BlackFideId "13711644"]
[WhiteElo "2482"]
[BlackElo "2872"]
[Result "0-1"]
[Round "1"]
[TimeControl "180+1"]
[Date "2023.08.08"]
[WhiteClock "0:00:54"]
[BlackClock "0:01:25"]
[Board "33"]

1. Nf3 {[%clk 0:03:00]}  a6 {[%clk 0:02:58]} 2. g3 {[%clk 0:03:01]}  g6 {[%clk 0:02:58]} 3. Bg2 {[%clk 0:03:02]}  Bg7 {[%clk 0:02:59]} 4. O-O {[%clk 0:03:02]}  Nf6 {[%clk 0:02:59]} 5. d3 {[%clk 0:03:03]}  O-O {[%clk 0:03:00]} 6. a4 {[%clk 0:03:04]}  c5 {[%clk 0:02:59]} 7. e4 {[%clk 0:03:02]}  d6 {[%clk 0:02:58]} 8. e5 {[%clk 0:03:01]}  dxe5 {[%clk 0:02:58]} 9. Nxe5 {[%clk 0:03:02]}  Nbd7 {[%clk 0:02:58]} 10. Nxd7 {[%clk 0:02:59]}  Nxd7 {[%clk 0:02:57]} 11. Nc3 {[%clk 0:03:00]}  Ne5 {[%clk 0:02:55]} 12. h3 {[%clk 0:02:58]}  Nc6 {[%clk 0:02:53]} 13. Re1 {[%clk 0:02:51]}  Bd7 {[%clk 0:02:42]} 14. Bg5 {[%clk 0:02:48]}  h6 {[%clk 0:02:38]} 15. Bd2 {[%clk 0:02:38]}  Rc8 {[%clk 0:02:32]} 16. Qc1 {[%clk 0:02:27]}  Kh7 {[%clk 0:02:31]} 17. h4 {[%clk 0:02:21]}  b6 {[%clk 0:02:28]} 18. Ne4 {[%clk 0:02:07]}  Nd4 {[%clk 0:02:25]} 19. Ra3 {[%clk 0:01:50]}  Bg4 {[%clk 0:02:22]} 20. Re3 {[%clk 0:01:50]}  Ne2+ {[%clk 0:02:10]} 21. Rxe2 {[%clk 0:01:50]}  Bxe2 {[%clk 0:02:10]} 22. f3 {[%clk 0:01:46]}  c4 {[%clk 0:02:11]} 23. dxc4 {[%clk 0:01:39]}  Bxc4 {[%clk 0:02:06]} 24. h5 {[%clk 0:01:40]}  Qd4+ {[%clk 0:02:03]} 25. Nf2 {[%clk 0:01:24]}  Qxb2 {[%clk 0:02:00]} 26. Re3 {[%clk 0:01:24]}  Qxc1+ {[%clk 0:01:54]} 27. Bxc1 {[%clk 0:01:25]}  Bd4 {[%clk 0:01:49]} 28. Rxe7 {[%clk 0:01:24]}  Be6 {[%clk 0:01:49]} 29. hxg6+ {[%clk 0:01:23]}  Kxg6 {[%clk 0:01:48]} 30. f4 {[%clk 0:01:21]}  Bxf2+ {[%clk 0:01:47]} 31. Kxf2 {[%clk 0:01:19]}  Rxc2+ {[%clk 0:01:46]} 32. Ke3 {[%clk 0:01:19]}  Rxc1 {[%clk 0:01:47]} 33. Rb7 {[%clk 0:01:18]}  Rc3+ {[%clk 0:01:41]} 34. Kd4 {[%clk 0:01:14]}  Rc4+ {[%clk 0:01:41]} 35. Ke5 {[%clk 0:01:10]}  Rd8 {[%clk 0:01:29]} 36. Rxb6 {[%clk 0:01:05]}  Kg7 {[%clk 0:01:25]} 37. Rxa6 {[%clk 0:00:57]}  Rc5+ {[%clk 0:01:24]} 38. Ke4 {[%clk 0:00:57]}  Bf5+ {[%clk 0:01:24]} 39. Ke3 {[%clk 0:00:57]}  Rd3+ {[%clk 0:01:25]} 40. Kf2 {[%clk 0:00:58]}  Rc2+ {[%clk 0:01:25]} 41. Kg1 {[%clk 0:00:54]}  Rxg3 {[%clk 0:01:25]} 0-1


[Site "https://www.chess.com"]

[Event "Titled Tuesday Blitz August 08 Late 2023"]
[White "Perez Ponsa, Federico"]
[Black "Rakitic2010"]
[WhiteFideId "117927"]
[WhiteElo "2866"]
[BlackElo "2482"]
[Result "1-0"]
[Round "1"]
[TimeControl "180+1"]
[Date "2023.08.08"]
[WhiteClock "0:00:04"]
[BlackClock "0:00:05"]
[Board "34"]

1. e4 {[%clk 0:02:57]}  c5 {[%clk 0:02:56]} 2. Nf3 {[%clk 0:02:57]}  e6 {[%clk 0:02:56]} 3. d4 {[%clk 0:02:56]}  cxd4 {[%clk 0:02:56]} 4. Nxd4 {[%clk 0:02:57]}  a6 {[%clk 0:02:56]} 5. Nc3 {[%clk 0:02:56]}  Qc7 {[%clk 0:02:55]} 6. Bd3 {[%clk 0:02:48]}  Nf6 {[%clk 0:02:51]} 7. Qe2 {[%clk 0:02:47]}  d6 {[%clk 0:02:46]} 8. f4 {[%clk 0:02:44]}  Nbd7 {[%clk 0:02:41]} 9. g4 {[%clk 0:02:44]}  Nc5 {[%clk 0:02:29]} 10. g5 {[%clk 0:02:40]}  Nfd7 {[%clk 0:02:29]} 11. Bd2 {[%clk 0:02:38]}  g6 {[%clk 0:02:21]} 12. f5 {[%clk 0:02:20]}  Ne5 {[%clk 0:02:10]} 13. Rc1 {[%clk 0:02:12]}  b5 {[%clk 0:02:07]} 14. b4 {[%clk 0:02:04]}  Na4 {[%clk 0:01:22]} 15. Nxa4 {[%clk 0:01:54]}  bxa4 {[%clk 0:01:23]} 16. O-O {[%clk 0:01:37]}  Be7 {[%clk 0:01:22]} 17. f6 {[%clk 0:01:34]}  Bd8 {[%clk 0:01:19]} 18. a3 {[%clk 0:01:33]}  h5 {[%clk 0:01:10]} 19. gxh6 {[%clk 0:01:30]}  Qa7 {[%clk 0:01:05]} 20. Be3 {[%clk 0:01:25]}  Bb6 {[%clk 0:01:04]} 21. c3 {[%clk 0:01:25]}  Bb7 {[%clk 0:00:52]} 22. Bc2 {[%clk 0:01:22]}  Rc8 {[%clk 0:00:51]} 23. Bxa4+ {[%clk 0:01:22]}  Kf8 {[%clk 0:00:49]} 24. Bb3 {[%clk 0:01:21]}  Bxe4 {[%clk 0:00:46]} 25. Bxe6 {[%clk 0:01:08]}  Bd3 {[%clk 0:00:30]} 26. Qf2 {[%clk 0:00:32]}  Re8 {[%clk 0:00:30]} 27. Bb3 {[%clk 0:00:29]}  Kg8 {[%clk 0:00:30]} 28. Rfe1 {[%clk 0:00:25]}  Kh7 {[%clk 0:00:29]} 29. Qg2 {[%clk 0:00:17]}  Qa8 {[%clk 0:00:22]} 30. Bd5 {[%clk 0:00:17]}  Qc8 {[%clk 0:00:21]} 31. Nc6 {[%clk 0:00:15]}  Nxc6 {[%clk 0:00:21]} 32. Bxb6 {[%clk 0:00:14]}  Ne5 {[%clk 0:00:19]} 33. c4 {[%clk 0:00:14]}  Qf5 {[%clk 0:00:18]} 34. Qf2 {[%clk 0:00:10]}  Qh5 {[%clk 0:00:17]} 35. Bg2 {[%clk 0:00:07]}  Ng4 {[%clk 0:00:17]} 36. Qg3 {[%clk 0:00:07]}  Be2 {[%clk 0:00:15]} 37. Rxe2 {[%clk 0:00:05]}  Rxe2 {[%clk 0:00:15]} 38. Bf3 {[%clk 0:00:05]}  Rxh2 {[%clk 0:00:13]} 39. Bxg4 {[%clk 0:00:03]}  Rh1+ {[%clk 0:00:13]} 40. Kg2 {[%clk 0:00:04]}  Rxc1 {[%clk 0:00:04]} 41. Bxh5 {[%clk 0:00:04]}  gxh5 {[%clk 0:00:05]} 42. Qg7# {[%clk 0:00:04]} 1-0


[Site "https://www.chess.com"]

[Event "Titled Tuesday Blitz August 08 Late 2023"]
[White "Ibarra Jerez, Jose Carlos"]
[Black "Gaal, Zsoka"]
[WhiteFideId "2226332"]
[BlackFideId "777765"]
[WhiteElo "2855"]
[BlackElo "2477"]
[Result "1-0"]
[Round "1"]
[TimeControl "180+1"]
[Date "2023.08.08"]
[WhiteClock "0:00:06"]
[BlackClock "0:00:00"]
[Board "38"]

1. e4 {[%clk 0:03:00]}  e5 {[%clk 0:02:54]} 2. Nf3 {[%clk 0:02:59]}  d6 {[%clk 0:02:55]} 3. d4 {[%clk 0:02:59]}  exd4 {[%clk 0:02:55]} 4. Nxd4 {[%clk 0:02:59]}  Nf6 {[%clk 0:02:55]} 5. Nc3 {[%clk 0:02:59]}  g6 {[%clk 0:02:55]} 6. Be3 {[%clk 0:02:57]}  Ng4 {[%clk 0:02:52]} 7. Bf4 {[%clk 0:02:54]}  Bg7 {[%clk 0:02:51]} 8. Qd2 {[%clk 0:02:53]}  Nc6 {[%clk 0:02:44]} 9. Nb3 {[%clk 0:02:40]}  Be6 {[%clk 0:02:37]} 10. f3 {[%clk 0:02:39]}  Nge5 {[%clk 0:02:36]} 11. O-O-O {[%clk 0:02:37]}  a5 {[%clk 0:02:27]} 12. Bg5 {[%clk 0:02:28]}  Qd7 {[%clk 0:02:18]} 13. Nd5 {[%clk 0:02:15]}  a4 {[%clk 0:02:05]} 14. Nd4 {[%clk 0:02:10]}  Bxd5 {[%clk 0:01:57]} 15. exd5 {[%clk 0:02:08]}  Nxd4 {[%clk 0:01:57]} 16. Qxd4 {[%clk 0:02:04]}  O-O {[%clk 0:01:58]} 17. Qb4 {[%clk 0:01:37]}  a3 {[%clk 0:01:53]} 18. b3 {[%clk 0:01:37]}  Qf5 {[%clk 0:01:44]} 19. h4 {[%clk 0:01:29]}  h6 {[%clk 0:01:33]} 20. Be3 {[%clk 0:01:29]}  Nd7 {[%clk 0:01:10]} 21. Bd4 {[%clk 0:01:19]}  Qf4+ {[%clk 0:00:52]} 22. Kb1 {[%clk 0:01:16]}  c5 {[%clk 0:00:46]} 23. dxc6 {[%clk 0:01:15]}  bxc6 {[%clk 0:00:46]} 24. Bc3 {[%clk 0:01:06]}  Qxb4 {[%clk 0:00:35]} 25. Bxb4 {[%clk 0:01:07]}  c5 {[%clk 0:00:35]} 26. Be1 {[%clk 0:00:59]}  Rfe8 {[%clk 0:00:31]} 27. Bb5 {[%clk 0:00:58]}  Red8 {[%clk 0:00:11]} 28. Rxd6 {[%clk 0:00:53]}  Nb6 {[%clk 0:00:08]} 29. Rxd8+ {[%clk 0:00:50]}  Rxd8 {[%clk 0:00:09]} 30. Ba5 {[%clk 0:00:50]}  Rd6 {[%clk 0:00:07]} 31. c4 {[%clk 0:00:41]}  Nd7 {[%clk 0:00:05]} 32. Kc2 {[%clk 0:00:30]}  Ne5 {[%clk 0:00:06]} 33. Rd1 {[%clk 0:00:26]}  Re6 {[%clk 0:00:06]} 34. Re1 {[%clk 0:00:17]}  Bf6 {[%clk 0:00:06]} 35. f4 {[%clk 0:00:14]}  Nf3 {[%clk 0:00:05]} 36. gxf3 {[%clk 0:00:13]}  Bxh4 {[%clk 0:00:02]} 37. Rxe6 {[%clk 0:00:12]}  fxe6 {[%clk 0:00:03]} 38. Kd3 {[%clk 0:00:10]}  Bf2 {[%clk 0:00:02]} 39. Bc3 {[%clk 0:00:10]}  h5 {[%clk 0:00:02]} 40. Ke2 {[%clk 0:00:10]}  Bg1 {[%clk 0:00:01]} 41. Kf1 {[%clk 0:00:10]}  Be3 {[%clk 0:00:01]} 42. Be5 {[%clk 0:00:10]}  h4 {[%clk 0:00:02]} 43. Kg2 {[%clk 0:00:10]}  Kf7 {[%clk 0:00:02]} 44. Kh3 {[%clk 0:00:11]}  Bf2 {[%clk 0:00:02]} 45. Bc6 {[%clk 0:00:09]}  Bg3 {[%clk 0:00:03]} 46. Kg4 {[%clk 0:00:09]}  g5 {[%clk 0:00:03]} 47. Bd6 {[%clk 0:00:06]}  gxf4 {[%clk 0:00:03]} 48. Bxc5 {[%clk 0:00:05]}  Kf6 {[%clk 0:00:02]} 49. Bxa3 {[%clk 0:00:05]}  e5 {[%clk 0:00:03]} 50. Bb2 {[%clk 0:00:06]}  Bf2 {[%clk 0:00:02]} 51. Be4 {[%clk 0:00:06]}  Bd4 {[%clk 0:00:02]} 52. Bxd4 {[%clk 0:00:05]}  exd4 {[%clk 0:00:00]} 53. Kxh4 {[%clk 0:00:06]} 1-0


[Site "https://www.chess.com"]

[Event "Titled Tuesday Blitz August 08 Late 2023"]
[White "Cheng, Xiao"]
[Black "Donchenko, Alexander"]
[WhiteFideId "2022915"]
[BlackFideId "24603295"]
[WhiteElo "2477"]
[BlackElo "2844"]
[Result "0-1"]
[Round "1"]
[TimeControl "180+1"]
[Date "2023.08.08"]
[WhiteClock "0:02:02"]
[BlackClock "0:01:54"]
[Board "39"]

1. e4 {[%clk 0:02:54]}  c6 {[%clk 0:02:58]} 2. d4 {[%clk 0:02:54]}  d5 {[%clk 0:02:59]} 3. e5 {[%clk 0:02:54]}  Bf5 {[%clk 0:02:59]} 4. h4 {[%clk 0:02:53]}  h5 {[%clk 0:02:58]} 5. Bd3 {[%clk 0:02:52]}  Bxd3 {[%clk 0:02:58]} 6. Qxd3 {[%clk 0:02:53]}  Qa5+ {[%clk 0:02:58]} 7. Bd2 {[%clk 0:02:49]}  Qa6 {[%clk 0:02:58]} 8. Qxa6 {[%clk 0:02:47]}  Nxa6 {[%clk 0:02:57]} 9. Ne2 {[%clk 0:02:47]}  e6 {[%clk 0:02:57]} 10. Nf4 {[%clk 0:02:48]}  Ne7 {[%clk 0:02:54]} 11. a3 {[%clk 0:02:47]}  Nf5 {[%clk 0:02:54]} 12. c3 {[%clk 0:02:46]}  Be7 {[%clk 0:02:53]} 13. g3 {[%clk 0:02:46]}  c5 {[%clk 0:02:52]} 14. dxc5 {[%clk 0:02:42]}  Nxc5 {[%clk 0:02:52]} 15. Ke2 {[%clk 0:02:43]}  Nb3 {[%clk 0:02:49]} 16. Ra2 {[%clk 0:02:42]}  Kd7 {[%clk 0:02:48]} 17. Be1 {[%clk 0:02:42]}  Nc1+ {[%clk 0:02:45]} 18. Kd1 {[%clk 0:02:34]}  Nxa2 {[%clk 0:02:45]} 19. Kc2 {[%clk 0:02:35]}  Rac8 {[%clk 0:02:41]} 20. Nd2 {[%clk 0:02:29]}  b5 {[%clk 0:02:32]} 21. Nb3 {[%clk 0:02:24]}  b4 {[%clk 0:02:30]} 22. Kb1 {[%clk 0:02:20]}  Nxc3+ {[%clk 0:02:25]} 23. bxc3 {[%clk 0:02:20]}  bxc3 {[%clk 0:02:26]} 24. Kc2 {[%clk 0:02:20]}  Bxa3 {[%clk 0:02:24]} 25. Ne2 {[%clk 0:02:13]}  Rc4 {[%clk 0:02:18]} 26. Bxc3 {[%clk 0:02:10]}  Bb4 {[%clk 0:02:11]} 27. Kd3 {[%clk 0:02:10]}  Bxc3 {[%clk 0:02:10]} 28. Nxc3 {[%clk 0:02:11]}  Rhc8 {[%clk 0:02:10]} 29. Ne2 {[%clk 0:02:10]}  Rb4 {[%clk 0:02:06]} 30. Nd2 {[%clk 0:02:09]}  a5 {[%clk 0:02:03]} 31. Ra1 {[%clk 0:02:08]}  a4 {[%clk 0:02:04]} 32. Nc3 {[%clk 0:02:07]}  Ke7 {[%clk 0:01:54]} 33. Rxa4 {[%clk 0:02:04]}  Rxc3+ {[%clk 0:01:53]} 34. Kxc3 {[%clk 0:02:02]}  Rxa4 {[%clk 0:01:54]} 0-1


[Site "https://www.chess.com"]

[Event "Titled Tuesday Blitz August 08 Late 2023"]
[White "Rasulov, Vugar"]
[Black "Garrido Outon, Alex"]
[WhiteFideId "13402390"]
[BlackFideId "24516279"]
[WhiteElo "2844"]
[BlackElo "2473"]
[Result "1-0"]
[Round "1"]
[TimeControl "180+1"]
[Date "2023.08.08"]
[WhiteClock "0:01:19"]
[BlackClock "0:00:23"]
[Board "40"]

1. e4 {[%clk 0:03:00]}  c6 {[%clk 0:02:59]} 2. d4 {[%clk 0:03:00]}  g6 {[%clk 0:02:59]} 3. Nc3 {[%clk 0:02:59]}  d5 {[%clk 0:02:59]} 4. Nf3 {[%clk 0:02:58]}  dxe4 {[%clk 0:02:56]} 5. Nxe4 {[%clk 0:02:58]}  Nf6 {[%clk 0:02:54]} 6. Nxf6+ {[%clk 0:02:54]}  exf6 {[%clk 0:02:55]} 7. Bc4 {[%clk 0:02:55]}  Bg7 {[%clk 0:02:55]} 8. Qe2+ {[%clk 0:02:53]}  Qe7 {[%clk 0:02:52]} 9. Qxe7+ {[%clk 0:02:53]}  Kxe7 {[%clk 0:02:53]} 10. Bf4 {[%clk 0:02:54]}  Be6 {[%clk 0:02:45]} 11. Bb3 {[%clk 0:02:54]}  Rd8 {[%clk 0:02:39]} 12. O-O-O {[%clk 0:02:53]}  Na6 {[%clk 0:02:39]} 13. c3 {[%clk 0:02:48]}  Kf8 {[%clk 0:02:15]} 14. Rhe1 {[%clk 0:02:43]}  Re8 {[%clk 0:02:13]} 15. Nd2 {[%clk 0:02:35]}  g5 {[%clk 0:02:08]} 16. Bg3 {[%clk 0:02:33]}  f5 {[%clk 0:02:02]} 17. Bd6+ {[%clk 0:02:25]}  Kg8 {[%clk 0:02:02]} 18. Nc4 {[%clk 0:02:26]}  f4 {[%clk 0:01:58]} 19. Na5 {[%clk 0:02:22]}  Rad8 {[%clk 0:01:53]} 20. Nxb7 {[%clk 0:02:16]}  Rd7 {[%clk 0:01:53]} 21. Nc5 {[%clk 0:02:16]}  Rxd6 {[%clk 0:01:45]} 22. Nxa6 {[%clk 0:02:16]}  Rf8 {[%clk 0:01:12]} 23. Nc5 {[%clk 0:02:12]}  Bc8 {[%clk 0:01:11]} 24. Re7 {[%clk 0:02:10]}  a5 {[%clk 0:01:09]} 25. Rde1 {[%clk 0:02:09]}  Bf6 {[%clk 0:01:09]} 26. Rxf7 {[%clk 0:02:01]}  Rxf7 {[%clk 0:01:08]} 27. Re8+ {[%clk 0:02:01]}  Kg7 {[%clk 0:01:08]} 28. Bxf7 {[%clk 0:02:02]}  Kxf7 {[%clk 0:01:06]} 29. Rxc8 {[%clk 0:02:02]}  g4 {[%clk 0:01:05]} 30. Kd2 {[%clk 0:01:59]}  h5 {[%clk 0:01:05]} 31. Ne4 {[%clk 0:01:59]}  Re6 {[%clk 0:01:05]} 32. f3 {[%clk 0:01:59]}  gxf3 {[%clk 0:01:04]} 33. gxf3 {[%clk 0:01:59]}  Be7 {[%clk 0:01:04]} 34. c4 {[%clk 0:01:52]}  Rg6 {[%clk 0:01:04]} 35. Kd3 {[%clk 0:01:46]}  Rg1 {[%clk 0:01:01]} 36. Rxc6 {[%clk 0:01:43]}  Rd1+ {[%clk 0:01:01]} 37. Ke2 {[%clk 0:01:41]}  Rxd4 {[%clk 0:01:00]} 38. b3 {[%clk 0:01:42]}  Rd8 {[%clk 0:00:56]} 39. Ra6 {[%clk 0:01:39]}  Rg8 {[%clk 0:00:53]} 40. Rxa5 {[%clk 0:01:38]}  h4 {[%clk 0:00:53]} 41. Kf1 {[%clk 0:01:35]}  h3 {[%clk 0:00:47]} 42. Rh5 {[%clk 0:01:34]}  Kg6 {[%clk 0:00:41]} 43. Rxh3 {[%clk 0:01:31]}  Rb8 {[%clk 0:00:38]} 44. Nc3 {[%clk 0:01:27]}  Bf6 {[%clk 0:00:32]} 45. Nd5 {[%clk 0:01:26]}  Bg5 {[%clk 0:00:30]} 46. Ke2 {[%clk 0:01:18]}  Ra8 {[%clk 0:00:29]} 47. Kd3 {[%clk 0:01:18]}  Rxa2 {[%clk 0:00:28]} 48. c5 {[%clk 0:01:19]}  Ra8 {[%clk 0:00:23]} 49. b4 {[%clk 0:01:19]} 1-0


[Site "https://www.chess.com"]

[Event "Titled Tuesday Blitz August 08 Late 2023"]
[White "Kravtsiv, Martyn"]
[Black "Itkis, Boris"]
[WhiteFideId "14113147"]
[BlackFideId "1209167"]
[WhiteElo "2842"]
[BlackElo "2469"]
[Result "1-0"]
[Round "1"]
[TimeControl "180+1"]
[Date "2023.08.08"]
[WhiteClock "0:02:52"]
[BlackClock "0:01:42"]
[Board "42"]

1. e4 {[%clk 0:03:00]}  e6 {[%clk 0:03:00]} 2. d4 {[%clk 0:02:59]}  d5 {[%clk 0:03:01]} 3. e5 {[%clk 0:02:58]}  c5 {[%clk 0:03:01]} 4. c3 {[%clk 0:02:59]}  Nc6 {[%clk 0:03:01]} 5. Nf3 {[%clk 0:02:59]}  Qb6 {[%clk 0:03:01]} 6. Be2 {[%clk 0:02:59]}  cxd4 {[%clk 0:02:58]} 7. cxd4 {[%clk 0:02:58]}  Nh6 {[%clk 0:02:58]} 8. Bxh6 {[%clk 0:02:57]}  Qxb2 {[%clk 0:02:58]} 9. O-O {[%clk 0:02:56]}  Qxa1 {[%clk 0:02:46]} 10. Qb3 {[%clk 0:02:55]}  Nxd4 {[%clk 0:02:18]} 11. Nxd4 {[%clk 0:02:54]}  Qxd4 {[%clk 0:02:16]} 12. Bb5+ {[%clk 0:02:54]}  Kd8 {[%clk 0:02:06]} 13. Bg5+ {[%clk 0:02:53]}  Be7 {[%clk 0:01:55]} 14. Bxe7+ {[%clk 0:02:51]}  Kxe7 {[%clk 0:01:42]} 15. Qa3+ {[%clk 0:02:52]} 1-0


[Site "https://www.chess.com"]

[Event "Titled Tuesday Blitz August 08 Late 2023"]
[White "Garakov, Mikhael"]
[Black "Mitrabha, Guha"]
[WhiteFideId "4169034"]
[BlackFideId "5057000"]
[WhiteElo "2467"]
[BlackElo "2833"]
[Result "0-1"]
[Round "1"]
[TimeControl "180+1"]
[Date "2023.08.08"]
[WhiteClock "0:00:07"]
[BlackClock "0:02:28"]
[Board "45"]

1. e4 {[%clk 0:03:00]}  c6 {[%clk 0:02:59]} 2. d4 {[%clk 0:02:59]}  d5 {[%clk 0:03:00]} 3. exd5 {[%clk 0:02:51]}  cxd5 {[%clk 0:03:00]} 4. Bd3 {[%clk 0:02:51]}  Nc6 {[%clk 0:03:00]} 5. c3 {[%clk 0:02:51]}  Nf6 {[%clk 0:03:00]} 6. h3 {[%clk 0:02:50]}  g6 {[%clk 0:02:58]} 7. Nf3 {[%clk 0:02:50]}  Bf5 {[%clk 0:02:58]} 8. Be2 {[%clk 0:02:43]}  Qc7 {[%clk 0:02:56]} 9. O-O {[%clk 0:02:43]}  e6 {[%clk 0:02:55]} 10. Re1 {[%clk 0:02:24]}  Bd6 {[%clk 0:02:53]} 11. Na3 {[%clk 0:02:14]}  a6 {[%clk 0:02:52]} 12. Nc2 {[%clk 0:02:14]}  h5 {[%clk 0:02:48]} 13. Ne3 {[%clk 0:02:04]}  Ne4 {[%clk 0:02:47]} 14. Nd2 {[%clk 0:01:45]}  Bh2+ {[%clk 0:02:45]} 15. Kf1 {[%clk 0:01:44]}  Nxf2 {[%clk 0:02:43]} 16. Kxf2 {[%clk 0:01:41]}  Qg3+ {[%clk 0:02:43]} 17. Kf1 {[%clk 0:01:40]}  Bxh3 {[%clk 0:02:43]} 18. Bf3 {[%clk 0:01:32]}  Bf5 {[%clk 0:02:38]} 19. Qe2 {[%clk 0:01:22]}  O-O-O {[%clk 0:02:36]} 20. Nb3 {[%clk 0:00:37]}  h4 {[%clk 0:02:34]} 21. Nc5 {[%clk 0:00:18]}  h3 {[%clk 0:02:32]} 22. Nxf5 {[%clk 0:00:18]}  gxf5 {[%clk 0:02:31]} 23. Qf2 {[%clk 0:00:13]}  Qc7 {[%clk 0:02:29]} 24. gxh3 {[%clk 0:00:10]}  Bg3 {[%clk 0:02:29]} 25. Qg2 {[%clk 0:00:09]}  Bxe1 {[%clk 0:02:30]} 26. Kxe1 {[%clk 0:00:09]}  Rdg8 {[%clk 0:02:30]} 27. Qf1 {[%clk 0:00:07]}  Qg3+ {[%clk 0:02:29]} 28. Ke2 {[%clk 0:00:07]}  Rxh3 {[%clk 0:02:29]} 29. Be3 {[%clk 0:00:08]}  f4 {[%clk 0:02:28]} 30. Bf2 {[%clk 0:00:07]}  Qxf3+ {[%clk 0:02:28]} 0-1


[Site "https://www.chess.com"]